lending/lending_fUSD_20240610
["ID","MTS","AMOUNT","RATE_DAILY","PERIOD"]
[328933489,1718007046376,-1597.6,0.00029041,4]
[328933490,1718007046386,-500.0,0.00029041,4]
[328933491,1718007046396,-500.0,0.00029041,4]
[328933492,1718007046407,-1597.6,0.00029041,4]
[328933493,1718007046418,-500.0,0.00029041,4]
[328933494,1718007046429,-500.0,0.00029041,4]
[328933495,1718007046440,-500.0,0.00029041,4]
[328933496,1718007046450,-500.0,0.00029041,4]
[328933497,1718007046461,-500.0,0.00029041,4]
[328933498,1718007046471,-500.0,0.00029041,4]
[328933499,1718007046482,-500.0,0.00029041,4]
[328933501,1718007046492,-532.76,0.00029041,4]
[328933502,1718007046503,-532.76,0.00029041,4]
[328933503,1718007046514,-500.0,0.00029041,4]
[328933505,1718007046525,-532.76,0.00029041,4]
[328933507,1718007046535,-532.76,0.00029041,4]
[328933509,1718007046546,-532.76,0.00029041,4]
[328933511,1718007046556,-9435.16,0.00029041,4]
[328933513,1718007046567,-9435.16,0.00029041,4]
[328933515,1718007046577,-9435.16,0.00029041,4]
[328933517,1718007046588,-977.87,0.00029041,4]
[328933520,1718007046598,-9435.16,0.00029041,4]
[328933521,1718007046608,-977.87,0.00029041,4]
[328933523,1718007046622,-977.87,0.00029041,4]
[328933525,1718007046632,-977.87,0.00029041,4]
[328933527,1718007046642,-977.87,0.00029041,4]
[328933530,1718007046654,-500.0,0.00029041,4]
[328933532,1718007046664,-500.0,0.00029041,4]
[328933534,1718007046674,-511.55526617,0.00029041,4]
[328933536,1718007046684,-500.0,0.00029041,4]
[328933537,1718007046693,-500.0,0.00029041,4]
[328933539,1718007046703,-500.0,0.00029041,4]
[328933541,1718007046713,-500.0,0.00029041,4]
[328933543,1718007046722,-500.0,0.00029041,4]
[328933545,1718007046734,-544.28,0.00029041,4]
[328933547,1718007046744,-500.0,0.00029041,4]
[328933550,1718007046754,-544.28,0.00029041,4]
[328933552,1718007046764,-500.0,0.00029041,4]
[328933554,1718007046775,-2149.13,0.00029041,4]
[328933556,1718007046785,-544.28,0.00029041,4]
[328933558,1718007046795,-2149.13,0.00029041,4]
[328933560,1718007046805,-544.28,0.00029041,4]
[328933562,1718007046815,-500.0,0.00029041,4]
[328933564,1718007046825,-2149.13,0.00029041,4]
[328933566,1718007046836,-500.0,0.00029041,4]
[328933568,1718007046847,-500.0,0.00029041,4]
[328933570,1718007046856,-759.04,0.00029041,4]
[328933571,1718007046867,-759.04,0.00029041,4]
[328933574,1718007046878,-759.04,0.00029041,4]
[328933576,1718007046888,-759.04,0.00029041,4]
[328933577,1718007046898,-759.04,0.00029041,4]
[328933579,1718007046908,-500.0,0.00029041,4]
[328933581,1718007046918,-500.0,0.00029041,4]
[328933584,1718007046928,-500.0,0.00029041,4]
[328933586,1718007046938,-500.0,0.00029041,4]
[328933588,1718007046949,-500.0,0.00029041,4]
[328933590,1718007046960,-818.37,0.00029041,4]
[328933592,1718007046970,-818.37,0.00029041,4]
[328933594,1718007046980,-500.0,0.00029041,2]
[328933596,1718007046991,-818.37,0.00029041,4]
[328933598,1718007047001,-501.07679385,0.00029041,2]
[328933600,1718007047011,-818.37,0.00029041,4]
[328933601,1718007047021,-500.0,0.00029041,4]
[328933603,1718007047032,-509.31946135,0.00029041,4]
[328933604,1718007047044,-2149.13,0.00029041,4]
[328933605,1718007047055,-2149.13,0.00029041,4]
[328933607,1718007047067,-500.0,0.00029041,4]
[328933609,1718007047077,-532.64751189,0.00029041,4]
[328933611,1718007047088,-500.0,0.00029041,4]
[328933613,1718007047098,-500.0,0.00029041,4]
[328933615,1718007047109,-500.0,0.00029041,4]
[328933617,1718007047120,-500.0,0.00029041,4]
[328933619,1718007047130,-500.0,0.00029041,4]
[328933621,1718007047141,-2060.06,0.00029041,4]
[328933623,1718007047151,-2060.06,0.00029041,4]
[328933625,1718007047165,-2060.06,0.00029041,4]
[328933627,1718007047175,-2060.06,0.00029041,4]
[328933630,1718007047186,-500.0,0.00029041,4]
[328933631,1718007047196,-1035.93,0.00029041,4]
[328933633,1718007047207,-1035.93,0.00029041,4]
[328933635,1718007047217,-509.73308914,0.00029041,4]
[328933637,1718007047227,-1035.93,0.00029041,4]
[328933639,1718007047240,-1035.93,0.00029041,4]
[328933641,1718007047250,-1035.93,0.00029041,4]
[328933643,1718007047260,-500.0,0.00029041,4]
[328933645,1718007047270,-500.0,0.00029041,4]
[328933647,1718007047281,-500.0,0.00029041,4]
[328933649,1718007047291,-500.0,0.00029041,4]
[328933651,1718007047301,-500.0,0.00029041,4]
[328933653,1718007047311,-500.0,0.00029041,4]
[328933655,1718007047321,-500.0,0.00029041,4]
[328933657,1718007047331,-1958.58,0.00029041,4]
[328933659,1718007047341,-500.0,0.00029041,4]
[328933661,1718007047352,-1958.58,0.00029041,4]
[328933663,1718007047362,-500.0,0.00029041,4]
[328933665,1718007047374,-1958.58,0.00029041,4]
[328933666,1718007047384,-500.0,0.00029041,4]
[328933668,1718007047394,-1958.58,0.00029041,4]
[328933670,1718007047404,-500.0,0.00029041,4]
[328933671,1718007047414,-1958.58,0.00029041,4]
[328933673,1718007047423,-500.0,0.00029041,4]
[328933677,1718007047474,-500.0,0.00029041,4]
[328933679,1718007047484,-500.0,0.00029041,4]
[328933680,1718007047495,-500.0,0.00029041,4]
[328933682,1718007047505,-500.0,0.00029041,4]
[328933684,1718007047515,-865.71,0.00029041,4]
[328933685,1718007047525,-500.0,0.00029041,4]
[328933687,1718007047534,-865.71,0.00029041,4]
[328933689,1718007047544,-500.0,0.00029041,4]
[328933690,1718007047554,-500.0,0.00029041,4]
[328933692,1718007047564,-865.71,0.00029041,4]
[328933694,1718007047574,-500.0,0.00029041,4]
[328933696,1718007047584,-865.71,0.00029041,4]
[328933697,1718007047594,-865.71,0.00029041,4]
[328933699,1718007047603,-500.0,0.00029041,4]
[328933701,1718007047613,-523.25857846,0.00029041,4]
[328933703,1718007047624,-441.59,0.00029041,2]
[328933704,1718007047634,-4919.45,0.00029048,2]
[328933706,1718007047643,-4818.53,0.00029051,2]
[328933708,1718007047653,-4955.97,0.00029051,2]
[328933709,1718007047662,-150.0,0.00029053,2]
[328933711,1718007047672,-504.9420582,0.00029067,2]
[328933713,1718007047682,-500.0,0.00029067,4]
[328933715,1718007047691,-500.0,0.00029068,4]
[328933717,1718007047701,-500.0,0.00029068,4]
[328933718,1718007047710,-532.3,0.00029068,4]
[328933720,1718007047719,-851.51,0.00029068,4]
[328933722,1718007047729,-3678.87,0.00029068,4]
[328933723,1718007047738,-500.0,0.00029068,4]
[328933724,1718007047748,-1438.98,0.00029068,4]
[328933725,1718007047758,-6230.95,0.00029068,4]
[328933726,1718007047768,-532.76,0.00029068,4]
[328933727,1718007047778,-500.0,0.00029068,4]
[328933728,1718007047788,-759.04,0.00029068,4]
[328933729,1718007047798,-392.59815953,0.00029069,4]
[328933730,1718007047807,-500.0,0.00029069,4]
[328933731,1718007047817,-500.0,0.00029069,4]
[328933732,1718007047826,-677.28,0.00029069,4]
[328933733,1718007047836,-1257.04,0.00029069,4]
[328933734,1718007047845,-500.0,0.00029069,4]
[328933735,1718007047855,-402.15739339,0.00029069,4]
[328933736,1718007047865,-500.0,0.00029069,4]
[328933737,1718007047876,-567.59586915,0.00029069,4]
[328933738,1718007047885,-412.88292053,0.00029069,4]
[328933739,1718007047895,-682.73,0.00029069,4]
[328933740,1718007047906,-500.0,0.00029069,4]
[328933741,1718007047916,-500.0,0.00029069,4]
[328933742,1718007047926,-500.0,0.00029069,4]
[328933743,1718007047936,-500.0,0.00029069,4]
[328933744,1718007047947,-9435.16,0.00029069,4]
[328933745,1718007047957,-544.28,0.00029069,4]
[328933746,1718007047967,-818.37,0.00029069,4]
[328933747,1718007047976,-2060.06,0.00029069,4]
[328933748,1718007047986,-500.0,0.00029069,4]
[328933749,1718007047995,-50000.0,0.0002907,2]
[328933750,1718007048004,-193.88261942,0.0002908,2]
[328933751,1718007048014,-150.0,0.00029085,2]
[328933752,1718007048023,-150.0,0.00029097,2]
[328933753,1718007048033,-1002.62,0.000291,2]
[328933754,1718007048043,-5005.29,0.000291,2]
[328933755,1718007048052,-319.66,0.000291,2]
[328933756,1718007048061,-150.0,0.00029104,2]
[328933757,1718007048071,-151.0,0.00029109,7]
[328933758,1718007048080,-154.43274773,0.00029113,2]
[328933759,1718007048090,-866.0,0.00029113,2]
[328933760,1718007048100,-717.0,0.00029113,2]
[328933761,1718007048109,-287.78842953,0.00029115,2]
[328933762,1718007048118,-5000.0,0.00029121,2]
[328933763,1718007048128,-500.0,0.00029146,4]
[328933764,1718007048138,-617.97746281,0.00029146,4]
[328933765,1718007048148,-500.0,0.00029146,4]
[328933766,1718007048159,-500.0,0.00029146,4]
[328933767,1718007048173,-1068.19,0.00029146,4]
[328933768,1718007048182,-1178.36,0.00029146,4]
[328933769,1718007048192,-500.0,0.00029146,4]
[328933770,1718007048203,-904.61,0.00029146,4]
[328933771,1718007048213,-573.48,0.00029146,4]
[328933772,1718007048224,-1140.74,0.00029146,4]
[328933773,1718007048234,-3133.69,0.00029146,4]
[328933774,1718007048247,-597.42,0.00029146,4]
[328933775,1718007048258,-500.0,0.00029146,4]
[328933776,1718007048268,-1943.81,0.00029146,4]
[328933777,1718007048278,-500.0,0.00029146,4]
[328933778,1718007048288,-500.0,0.00029146,4]
[328933779,1718007048298,-3092.33,0.00029146,4]
[328933780,1718007048308,-500.0,0.00029146,4]
[328933781,1718007048318,-500.0,0.00029146,4]
[328933782,1718007048330,-738.38,0.00029146,4]
[328933783,1718007048339,-1077.98,0.00029146,4]
[328933784,1718007048350,-1433.95,0.00029146,4]
[328933785,1718007048359,-1194.15,0.00029146,4]
[328933786,1718007048371,-6159.384126,0.00029146,7]
[328933787,1718007048381,-6159.384126,0.00029146,7]
[328933788,1718007048390,-943.22,0.00029146,4]
[328933789,1718007048400,-500.0,0.00029146,4]
[328933790,1718007048410,-977.87,0.00029146,4]
[328933791,1718007048420,-500.0,0.00029146,4]
[328933792,1718007048430,-151.0,0.00029146,7]
[328933793,1718007048440,-2149.13,0.00029146,4]
[328933794,1718007048449,-1035.93,0.00029146,4]
[328933795,1718007048459,-1958.58,0.00029146,4]
[328933796,1718007048470,-500.0,0.00029146,4]
[328933797,1718007048479,-500.0,0.00029148,4]
[328933798,1718007048489,-500.0,0.00029148,4]
[328933799,1718007048499,-500.0,0.00029148,4]
[328933800,1718007048509,-500.0,0.00029148,4]
[328933801,1718007048519,-25000.0,0.00029149,2]
[328933802,1718007048529,-1632.82147199,0.00029175,2]
[328933803,1718007048710,-3367.17852801,0.00029175,2]
[328933804,1718007048720,-610.17533753,0.00029194,8]
[328933805,1718007048731,-3239.93,0.00029199,4]
[328933806,1718007048741,-500.0,0.00029199,4]
[328933807,1718007048752,-569.92,0.00029199,4]
[328933808,1718007048762,-940.29,0.00029199,4]
[328933809,1718007048772,-654.04,0.00029199,4]
[328933810,1718007048782,-1444.02,0.00029199,4]
[328933811,1718007048792,-500.0,0.00029199,4]
[328933812,1718007048802,-1478.76,0.00029199,4]
[328933813,1718007048812,-500.0,0.00029199,4]
[328933814,1718007048822,-500.0,0.00029199,4]
[328933815,1718007048831,-500.0,0.00029199,4]
[328933816,1718007048842,-2690.63,0.00029199,4]
[328933817,1718007048852,-763.76,0.00029199,4]
[328933818,1718007048863,-1047.41,0.00029199,4]
[328933819,1718007048874,-576.92669008,0.00029199,4]
[328933820,1718007049012,-266.25901707,0.00028941,2]
[328933821,1718007049025,-51.63678881,0.00028941,2]
[328933822,1718007049037,-500.0,0.00029041,4]
[328933823,1718007049048,-500.0,0.00029041,4]
[328933824,1718007049058,-479.06618087,0.00029041,4]
[328933825,1718007049101,-315.20424558,0.00027587,7]
[328933826,1718007049111,-20.93381913,0.00029041,4]
[328933827,1718007049122,-161.84,0.00029067,4]
[328933828,1718007049133,-891.35048698,0.00029199,4]
[328933829,1718007049146,-2295.08282294,0.00029199,4]
[328933830,1718007049158,-500.0,0.00029199,4]
[328933831,1718007049170,-263.62388649,0.00029199,4]
[328933832,1718007049964,-453.25940463,0.00025845,2]
[328933833,1718007049975,-169.36,0.00028102,2]
[328933834,1718007049985,-1388.50960449,0.00028524,2]
[328933835,1718007049997,-1333.97611351,0.00029199,4]
[328933836,1718007050008,-500.0,0.00029199,4]
[328933837,1718007050019,-500.0,0.00029199,4]
[328933838,1718007050030,-491.92358211,0.00029199,4]
[328933839,1718007050043,-304.0517245,0.00029199,4]
[328933840,1718007050280,-69.73469339,0.00029199,4]
[328933841,1718007050290,-8381.42687352,0.000292,4]
[328933842,1718007050303,-1211.45319428,0.000292,4]
[328933843,1718007050575,-9625.7380435,0.000292,4]
[328933844,1718007050589,-4041.59302752,0.000292,4]
[328933845,1718007050600,-4561.76311574,0.000292,5]
[328933847,1718007050826,-1042.87918512,0.00028524,2]
[328933849,1718007050837,-1216.55088874,0.000292,5]
[328933851,1718007050847,-1000.0,0.000292,2]
[328933853,1718007050858,-287.78842953,0.00029203,2]
[328933855,1718007050870,-150.0,0.00029203,2]
[328933857,1718007050882,-504.9420582,0.00029206,2]
[328933859,1718007050895,-193.88261942,0.00029219,2]
[328933861,1718007050906,-150.0,0.00029248,2]
[328933863,1718007050917,-151.0,0.00029249,4]
[328933865,1718007050928,-153.15701281,0.00029252,2]
[328933867,1718007050939,-150.0,0.0002926,2]
[328933869,1718007050949,-600.0,0.00029266,8]
[328933871,1718007050960,-150.0,0.00029275,2]
[328933873,1718007050972,-1601.79804647,0.00029284,2]
[328933876,1718007050986,-304.76065012,0.00029284,2]
[328933894,1718007051278,-2429.94,0.00029041,4]
[328933897,1718007051290,-3093.44130341,0.00029284,2]
[328933899,1718007051300,-150.0,0.00029285,2]
[328933901,1718007051311,-287.78842953,0.0002929,2]
[328933903,1718007051321,-150.0,0.0002929,2]
[328933905,1718007051332,-150.0,0.00029299,2]
[328933907,1718007051342,-253.30899809,0.00029302,2]
[328933909,1718007051353,-5000.0,0.00029325,2]
[328933911,1718007051364,-150.0,0.00029342,2]
[328933912,1718007051377,-504.9420582,0.00029345,2]
[328933914,1718007051387,-420.97,0.00029347,2]
[328933916,1718007051397,-150.0,0.00029352,2]
[328933918,1718007051407,-193.88261942,0.00029357,2]
[328933921,1718007051418,-150.0,0.00029362,2]
[328933923,1718007051428,-150.0,0.00029366,2]
[328933925,1718007051439,-340.47,0.00029367,2]
[328933927,1718007051449,-183.21120484,0.00029371,15]
[328933929,1718007051459,-2100.0,0.00029372,2]
[328933931,1718007051469,-2504.19,0.00029373,2]
[328933933,1718007051480,-287.78842953,0.00029377,2]
[328933935,1718007051491,-150.0,0.00029378,2]
[328933937,1718007051502,-500.0,0.00029384,4]
[328933939,1718007051512,-5005.29,0.00029385,2]
[328933941,1718007051523,-150.0,0.0002939,2]
[328933943,1718007051534,-150.0,0.00029391,2]
[328933945,1718007051544,-885.40346648,0.00029391,2]
[328933947,1718007051554,-157.65468254,0.00029391,2]
[328933949,1718007051564,-2078.54556027,0.00029391,2]
[328933951,1718007051574,-500.0,0.00029398,4]
[328933953,1718007051586,-500.0,0.00029398,4]
[328933955,1718007051596,-500.0,0.00029398,4]
[328933957,1718007051607,-677.28,0.00029398,4]
[328933959,1718007051619,-532.3,0.00029398,4]
[328933961,1718007051629,-1257.04,0.00029398,4]
[328933963,1718007051640,-851.51,0.00029398,4]
[328933965,1718007051650,-500.0,0.00029398,4]
[328933967,1718007051660,-3678.87,0.00029398,4]
[328933969,1718007051671,-500.0,0.00029398,4]
[328933971,1718007051682,-500.0,0.00029398,4]
[328933973,1718007051692,-682.73,0.00029398,4]
[328933976,1718007051704,-500.0,0.00029398,4]
[328933978,1718007051715,-1438.98,0.00029398,4]
[328933980,1718007051726,-334.04927639,0.00029398,4]
[328933982,1718007051737,-6230.95,0.00029398,4]
[328933984,1718007051748,-500.0,0.00029398,4]
[328933986,1718007051758,-500.0,0.00029398,4]
[328933988,1718007051771,-532.76,0.00029398,4]
[328933990,1718007051781,-9435.16,0.00029398,4]
[328933991,1718007051792,-500.0,0.00029398,4]
[328933992,1718007051802,-544.28,0.00029398,4]
[328933993,1718007051813,-759.04,0.00029398,4]
[328933994,1718007051824,-818.37,0.00029398,4]
[328933995,1718007051834,-2060.06,0.00029398,4]
[328933996,1718007051845,-500.0,0.00029398,4]
[328933997,1718007051856,-500.0,0.00029399,4]
[328933998,1718007051866,-500.0,0.00029399,4]
[328934000,1718007051878,-351.48087609,0.00029399,4]
[328934002,1718007051889,-481.30571894,0.00029399,4]
[328934004,1718007051900,-500.0,0.00029399,4]
[328934005,1718007051910,-1068.19,0.00029399,4]
[328934006,1718007051921,-1178.36,0.00029399,4]
[328934008,1718007051931,-500.0,0.00029399,4]
[328934010,1718007051942,-904.61,0.00029399,4]
[328934012,1718007051952,-569.92,0.00029399,4]
[328934014,1718007051962,-573.48,0.00029399,4]
[328934017,1718007051973,-940.29,0.00029399,4]
[328934020,1718007051983,-1140.74,0.00029399,4]
[328934022,1718007051994,-654.04,0.00029399,4]
[328934024,1718007052004,-3133.69,0.00029399,4]
[328934026,1718007052015,-1444.02,0.00029399,4]
[328934028,1718007052025,-597.42,0.00029399,4]
[328934030,1718007052035,-500.0,0.00029399,4]
[328934032,1718007052046,-1478.76,0.00029399,4]
[328934034,1718007052057,-500.0,0.00029399,4]
[328934035,1718007052068,-1943.81,0.00029399,4]
[328934036,1718007052079,-500.0,0.00029399,4]
[328934037,1718007052090,-617.78521987,0.00029399,4]
[328934038,1718007052101,-500.0,0.00029399,4]
[328934039,1718007052111,-500.0,0.00029399,4]
[328934040,1718007052124,-3092.33,0.00029399,4]
[328934041,1718007052135,-500.0,0.00029399,4]
[328934042,1718007052146,-500.0,0.00029399,4]
[328934043,1718007052156,-2690.63,0.00029399,4]
[328934044,1718007052168,-319.24107445,0.00029399,4]
[328934045,1718007052179,-738.38,0.00029399,4]
[328934046,1718007052190,-763.76,0.00029399,4]
[328934047,1718007052201,-1077.98,0.00029399,4]
[328934048,1718007052212,-1047.41,0.00029399,4]
[328934049,1718007052223,-1433.95,0.00029399,4]
[328934050,1718007052234,-3763.36,0.00029399,4]
[328934051,1718007052247,-1194.15,0.00029399,4]
[328934052,1718007052257,-500.0,0.00029399,4]
[328934053,1718007052268,-943.22,0.00029399,4]
[328934054,1718007052278,-1597.6,0.00029399,4]
[328934055,1718007052288,-246.54,0.00029399,4]
[328934056,1718007052298,-977.87,0.00029399,4]
[328934057,1718007052308,-500.0,0.00029399,4]
[328934058,1718007052317,-350.17803411,0.00029399,4]
[328934059,1718007052327,-2149.13,0.00029399,4]
[328934060,1718007052337,-500.0,0.00029399,4]
[328934061,1718007052347,-1035.93,0.00029399,4]
[328934062,1718007052356,-500.0,0.00029399,4]
[328934063,1718007052367,-500.0,0.00029399,4]
[328934064,1718007052377,-1958.58,0.00029399,4]
[328934065,1718007052386,-500.0,0.00029399,4]
[328934066,1718007052396,-500.0,0.00029399,4]
[328934067,1718007052406,-865.71,0.00029399,4]
[328934068,1718007052417,-132645.0,0.000294,2]
[328934069,1718007052428,-334.2,0.000294,2]
[328934070,1718007052438,-691.0,0.000294,2]
[328934071,1718007052449,-600.0,0.000294,8]
[328934072,1718007052459,-600.0,0.000294,8]
[328934073,1718007052469,-600.0,0.000294,8]
[328934074,1718007052479,-616.71256435,0.000294,8]
[328934075,1718007052490,-150.0,0.000294,2]
[328934076,1718007052500,-813.0,0.000294,18]
[328934077,1718007052510,-600.0,0.000294,2]
[328934078,1718007052520,-3947.50179395,0.000294,7]
[328934085,1718007211512,150.0,0.00029687,120]
[328934086,1718007330771,150.0,0.00029308,120]
[328934087,1718007397825,2531.64589931,0.00029863,120]
[328934088,1718007400516,160.28,0.00027056,120]
[328934094,1718008047303,2278.48130938,0.00029863,120]
[328934097,1718008174165,-310.26012697,0.00016837,2]
[328934098,1718008174190,-2368.99633201,0.00016839,2]
[328934099,1718008174216,-941.12648746,0.0001684,2]
[328934100,1718008174242,-1379.61705356,0.00016937,2]
[328934110,1718008233292,-209.52678916,0.00016836,2]
[328934111,1718008233304,-232.74396967,0.00016838,2]
[328934112,1718008233401,-1723.49402903,0.00016838,2]
[328934113,1718008233625,-238.40607522,0.00016838,2]
[328934114,1718008233640,-150.0,0.00016936,2]
[328934115,1718008233654,-24663.38911052,0.00016937,2]
[328934116,1718008233666,-1042.87918512,0.00016937,2]
[328934117,1718008233678,-150.0,0.00016937,2]
[328934118,1718008233689,-150.0,0.00016937,2]
[328934119,1718008233701,-150.0,0.00016937,2]
[328934120,1718008233713,-150.0,0.00016937,2]
[328934121,1718008233724,-219.84992135,0.00016937,2]
[328934122,1718008233735,-390.21,0.00024384,2]
[328934123,1718008233747,-335.74003872,0.00024384,2]
[328934124,1718008233761,-664.24996128,0.00024384,2]
[328934125,1718008233772,-7757.34,0.00025241,2]
[328934126,1718008233784,-357.82,0.00025434,2]
[328934127,1718008233796,-161.88764684,0.00026078,2]
[328934129,1718008233807,-453.25940463,0.00026342,2]
[328934131,1718008233819,-200.0,0.00026535,2]
[328934133,1718008233831,-169.23,0.00026916,2]
[328934135,1718008233842,-169.23,0.00026988,2]
[328934137,1718008233855,-264.47,0.0002703,2]
[328934139,1718008233866,-813.48792728,0.00027098,2]
[328934141,1718008233878,-7543.38440337,0.00027214,2]
[328934191,1718008238595,-3199.2809199,0.00027214,2]
[328934192,1718008238612,-470.79451812,0.00027214,2]
[328934193,1718008238625,-2019.18783417,0.00027214,2]
[328934194,1718008238907,-10637.35232444,0.00027214,2]
[328934195,1718008238919,-250.0,0.0002723,2]
[328934196,1718008238929,-165.24,0.00027382,2]
[328934197,1718008238939,-165.24,0.00027451,2]
[328934198,1718008238950,-165.24,0.00027519,2]
[328934199,1718008238961,-160.15558419,0.00027547,2]
[328934200,1718008238972,-157.6292984,0.0002755,2]
[328934201,1718008238984,-357.82,0.00027697,2]
[328934202,1718008238995,-155.56456196,0.00027849,2]
[328934203,1718008239007,-152.9580582,0.00027979,2]
[328934204,1718008239019,-224.8860613,0.00028,2]
[328934205,1718008239030,-317.73497843,0.00028118,7]
[328934206,1718008239041,-12091.71854574,0.00028118,2]
[328934207,1718008239055,-928.28145426,0.00028118,2]
[328934208,1718008239066,-163.94201956,0.00028524,2]
[328934209,1718008239077,-1279.52468057,0.0002884,2]
[328934210,1718008239089,-22225.2198,0.00028841,2]
[328934211,1718008239100,-200.0,0.00028927,2]
[328934212,1718008239112,-500.0,0.00028927,2]
[328934213,1718008239123,-200.0,0.00028927,2]
[328934214,1718008239134,-884.2601,0.00028941,2]
[328934215,1718008239433,-3000.0,0.00029,2]
[328934216,1718008239453,-1111.0,0.00029,5]
[328934217,1718008239466,-183.21120484,0.00029,15]
[328934218,1718008239477,-282.90771875,0.00029039,2]
[328934219,1718008239488,-201.64148981,0.0002904,2]
[328934220,1718008239498,-267.27560614,0.0002904,2]
[328934221,1718008239508,-525.31539488,0.0002904,2]
[328934222,1718008239519,-636.97812836,0.00029041,4]
[328934223,1718008239529,-2367.80644329,0.00029068,2]
[328934224,1718008239540,-12552.48979032,0.00029069,2]
[328934225,1718008239551,-50000.0,0.0002907,2]
[328934226,1718008239565,-1010.58,0.000291,2]
[328934227,1718008239575,-317.48,0.000291,2]
[328934228,1718008239586,-3528.41669584,0.00029106,4]
[328934229,1718008239596,-856.0,0.00029113,2]
[328934230,1718008239607,-151.0,0.00029129,4]
[328934231,1718008239617,-1218.0,0.000292,2]
[328934232,1718008239627,-1000.0,0.00029298,2]
[328934233,1718008239640,-2500.0,0.00029298,2]
[328934234,1718008239651,-154.23706338,0.00029321,2]
[328934235,1718008239661,-172.94,0.00029336,2]
[328934236,1718008239672,-184.67180576,0.00029386,2]
[328934237,1718008239683,-7500.0,0.00029388,2]
[328934238,1718008239693,-1022.84,0.00029397,4]
[328934239,1718008239704,-528.55,0.00029397,3]
[328934240,1718008239715,-500.0,0.00029398,4]
[328934241,1718008239725,-506.64597992,0.00029398,4]
[328934242,1718008239736,-155.0,0.00029398,4]
[328934243,1718008239747,-500.0,0.00029398,4]
[328934244,1718008239757,-500.0,0.00029398,4]
[328934245,1718008239768,-500.0,0.00029398,4]
[328934246,1718008239778,-500.0,0.00029398,4]
[328934247,1718008239788,-220.42416582,0.00029398,4]
[328934248,1718008239798,-500.0,0.00029398,4]
[328934249,1718008239808,-185.90340499,0.00029398,4]
[328934250,1718008239819,-376.60782797,0.00029398,4]
[328934251,1718008239829,-500.0,0.00029398,4]
[328934252,1718008239839,-500.0,0.00029398,4]
[328934253,1718008239849,-507.58725164,0.00029398,4]
[328934254,1718008239860,-500.0,0.00029398,4]
[328934255,1718008239870,-500.0,0.00029398,4]
[328934256,1718008239880,-500.0,0.00029398,4]
[328934257,1718008239891,-250.73063684,0.00029398,4]
[328934258,1718008239902,-500.0,0.00029398,4]
[328934259,1718008239912,-500.0,0.00029398,4]
[328934260,1718008239923,-245.07696641,0.00029398,4]
[328934261,1718008239933,-500.0,0.00029398,4]
[328934262,1718008239944,-500.0,0.00029398,4]
[328934263,1718008239954,-808.03,0.00029398,4]
[328934264,1718008239965,-808.03,0.00029398,4]
[328934265,1718008239976,-2219.7,0.00029398,4]
[328934266,1718008239987,-2219.7,0.00029398,4]
[328934267,1718008239997,-500.0,0.00029398,4]
[328934268,1718008240009,-500.0,0.00029398,4]
[328934269,1718008240020,-500.0,0.00029398,4]
[328934270,1718008240034,-500.0,0.00029398,4]
[328934271,1718008240048,-1376.87,0.00029398,4]
[328934272,1718008240059,-1376.87,0.00029398,4]